bitfinex/quotes_BTCUSD_20230405
["timestamp","ask_amount","ask_price","bid_price","bid_amount"]
[1680679251856,0.41315365,28484.0,28482.0,0.01317725]
[1680679252058,0.05038144,28484.0,28482.0,0.11509432]
[1680679252285,0.05038144,28484.0,28483.0,0.16397162]
[1680679252523,0.05038144,28484.0,28483.0,0.16546562]
[1680679252724,0.05038144,28484.0,28483.0,0.16452937]
[1680679253145,0.43593076,28486.0,28483.0,0.16312437]
[1680679253345,0.43593076,28486.0,28483.0,0.13694937]
[1680679253577,0.002,28484.0,28483.0,0.15094937]
[1680679253807,0.002,28484.0,28483.0,0.17779137]
[1680679254020,0.002,28484.0,28483.0,0.15094937]
[1680679262405,0.04930922,28484.0,28483.0,0.15094937]
[1680679264061,0.04930922,28484.0,28483.0,0.014]
[1680679264280,0.49498345,28484.0,28483.0,0.014]
[1680679265416,0.46446745,28484.0,28483.0,0.014]
[1680679265859,0.04930922,28484.0,28483.0,0.014]
[1680679266763,0.04930922,28484.0,28483.0,0.09808397]
[1680679267423,0.04930922,28484.0,28483.0,0.014]
[1680679268538,0.04930922,28484.0,28483.0,0.09808397]
[1680679269026,0.04930922,28484.0,28483.0,0.20819471]
[1680679269833,0.04930922,28484.0,28483.0,0.45279453]
[1680679270034,0.04930922,28484.0,28483.0,0.6904403]
[1680679270242,0.002,28484.0,28483.0,0.5780286]
[1680679270432,0.002,28484.0,28483.0,0.53507499]
[1680679270840,0.00051,28490.0,28483.0,1.06327499]
[1680679271040,0.44773466,28491.0,28489.0,0.08417535]
[1680679271239,0.44773466,28491.0,28489.0,0.09470535]
[1680679271240,0.00051,28491.0,28489.0,0.09470535]
[1680679271647,0.41659338,28491.0,28490.0,0.024771]
[1680679271866,0.41710338,28491.0,28490.0,0.024771]
[1680679272054,0.41710338,28491.0,28490.0,0.035301]
[1680679272300,0.00051,28491.0,28490.0,0.01053]
[1680679272522,0.3752817,28494.0,28490.0,0.56317936]
[1680679272745,0.3757917,28494.0,28491.0,0.101571]
[1680679272966,0.41407117,28493.0,28491.0,0.084329]
[1680679273194,0.41458117,28493.0,28491.0,0.084329]
[1680679273883,0.00051,28493.0,28491.0,0.084329]
[1680679274107,0.37505976,28495.0,28492.0,0.026318]
[1680679274328,0.37556976,28495.0,28493.0,0.010528]
[1680679274909,0.37556976,28495.0,28492.0,0.14445394]
[1680679275134,0.00051,28495.0,28493.0,0.11725142]
[1680679275284,0.42952489,28496.0,28494.0,0.026628]
[1680679275483,0.42952489,28496.0,28493.0,0.09062742]
[1680679275484,0.43003489,28496.0,28493.0,0.09062742]
[1680679276286,0.43003489,28496.0,28493.0,0.10962742]
[1680679276480,0.43003489,28496.0,28493.0,0.09062742]
[1680679276700,0.43003489,28496.0,28493.0,0.10962742]
[1680679277671,0.42941912,28496.0,28493.0,0.10980742]
[1680679278051,0.42941912,28496.0,28494.0,0.12009461]
[1680679278283,0.42908612,28496.0,28494.0,0.12015461]
[1680679278501,0.07451,28498.0,28494.0,0.12021461]
[1680679278716,0.52790726,28498.0,28494.0,0.12009461]
[1680679279135,0.45390726,28498.0,28494.0,0.20549461]
[1680679279348,0.45390726,28498.0,28494.0,0.20402261]
[1680679279576,0.45390726,28498.0,28494.0,0.21249461]
[1680679279795,0.45390726,28498.0,28494.0,0.21261461]
[1680679280019,0.45390726,28498.0,28494.0,0.19361461]
[1680679280235,0.45390726,28498.0,28495.0,0.09322699]
[1680679280469,0.45390726,28498.0,28494.0,0.07352]
[1680679280690,0.45390726,28498.0,28494.0,0.1014]
[1680679280923,0.45390726,28498.0,28494.0,0.0734]
[1680679281149,0.45390726,28498.0,28493.0,0.19588143]
[1680679281366,0.59580407,28498.0,28493.0,0.55059199]
[1680679281589,0.59580407,28498.0,28493.0,0.19588143]
[1680679281824,0.59580407,28498.0,28494.0,0.028]
[1680679282042,0.45390726,28498.0,28493.0,0.19588143]
[1680679282239,0.45390726,28498.0,28493.0,0.22388143]
[1680679282461,0.45390726,28498.0,28493.0,0.19588143]
[1680679282920,0.45390726,28498.0,28494.0,0.028]
[1680679283145,0.49660737,28498.0,28493.0,0.09398]
[1680679283368,0.105707,28497.0,28493.0,0.048]
[1680679283598,0.034104,28496.0,28493.0,0.02]
[1680679283832,0.0733,28497.0,28493.0,0.048]
[1680679284984,0.0733,28497.0,28493.0,0.12396522]
[1680679285202,0.37031785,28496.0,28493.0,0.15196522]
[1680679285413,0.37031785,28496.0,28493.0,0.15214522]
[1680679285841,0.37031785,28496.0,28493.0,0.12414522]
[1680679286041,0.37031785,28496.0,28493.0,0.12402522]
[1680679286252,0.37031785,28496.0,28493.0,0.04812]
[1680679286476,0.37031785,28496.0,28493.0,0.048]
[1680679287344,0.05693077,28495.0,28493.0,0.04818]
[1680679287859,0.4678421,28495.0,28493.0,0.04818]
[1680679288293,0.38633727,28494.0,28493.0,0.04818]
[1680679288512,0.38633727,28494.0,28493.0,0.02018]
[1680679288729,0.38633727,28494.0,28493.0,0.04818]
[1680679288939,0.38633727,28494.0,28493.0,0.02018]
[1680679289151,0.38633727,28494.0,28493.0,0.04818]
[1680679291366,0.07381,28497.0,28493.0,0.058708]
[1680679291621,0.41771545,28496.0,28493.0,0.058528]
[1680679291860,0.41771545,28496.0,28493.0,0.058708]
[1680679292516,0.41771545,28496.0,28493.0,0.030708]
[1680679292732,0.41771545,28496.0,28493.0,0.058708]
[1680679295919,0.0738,28494.0,28493.0,0.048]
[1680679296147,0.83265637,28494.0,28493.0,0.048]
[1680679296374,0.69075956,28494.0,28493.0,0.048]
[1680679297092,0.69075956,28494.0,28493.0,0.02]
[1680679297753,0.69275956,28494.0,28493.0,0.022]
[1680679299292,0.84075956,28494.0,28493.0,0.022]
[1680679301657,0.84075956,28494.0,28493.0,0.02189493]
[1680679302349,0.89652017,28494.0,28493.0,0.01631887]
[1680679303473,0.89652017,28494.0,28493.0,0.01077766]
[1680679304323,0.89652017,28494.0,28493.0,0.00527108]
[1680679305404,0.1,28493.0,28485.0,0.00018]
[1680679305625,0.52899037,28492.0,28484.0,0.10113119]
[1680679305846,0.074,28486.0,28484.0,0.10113119]
[1680679306329,0.21589681,28486.0,28484.0,0.00018]
[1680679306341,0.54576737,28486.0,28484.0,0.00018]
[1680679306532,0.40387056,28486.0,28484.0,0.00018]
[1680679306998,0.40387056,28486.0,28484.0,0.02818]
[1680679307215,0.40387056,28486.0,28484.0,0.00018]
[1680679307465,0.40387056,28486.0,28484.0,0.02818]
[1680679308318,0.40387056,28486.0,28484.0,0.00018]
[1680679308641,0.4582036,28485.0,28484.0,0.02818]
[1680679308863,0.4582036,28485.0,28484.0,0.00018]
[1680679309685,0.4587136,28485.0,28484.0,0.028]
[1680679309902,0.4582036,28485.0,28484.0,0.00018]
[1680679310105,0.4582036,28485.0,28484.0,0.02818]
[1680679310323,0.4582036,28485.0,28484.0,0.00018]
[1680679311583,0.4582036,28485.0,28484.0,0.02818]
[1680679311793,0.4582036,28485.0,28484.0,0.00018]
[1680679312087,0.105276,28485.0,28484.0,0.02818]
[1680679312292,0.46639812,28485.0,28484.0,0.02818]
[1680679312923,0.46639812,28485.0,28484.0,0.00018]
[1680679313132,0.46639812,28485.0,28484.0,0.02618]
[1680679315210,0.46690812,28485.0,28480.0,0.44078259]
[1680679315410,0.37558484,28484.0,28480.0,0.52477794]
[1680679315857,0.37558484,28484.0,28480.0,0.44060259]
[1680679316059,0.37558484,28484.0,28480.0,0.44960259]
[1680679316330,0.074,28483.0,28480.0,0.44060259]
[1680679316542,0.074,28483.0,28480.0,0.44072259]
[1680679317122,0.074,28483.0,28480.0,0.44060259]
[1680679317293,0.074,28483.0,28480.0,0.44960259]
[1680679317515,0.074,28483.0,28480.0,0.44060259]
[1680679317722,0.077,28483.0,28480.0,0.44960259]
[1680679319027,0.44282361,28483.0,28480.0,0.44960259]
[1680679319240,0.44282361,28483.0,28480.0,0.44972259]
[1680679319432,0.40889224,28482.0,28480.0,0.44972259]
[1680679319760,0.40889224,28482.0,28480.0,0.44978259]
[1680679319914,0.40889224,28482.0,28480.0,0.00918]
[1680679320115,0.05216193,28481.0,28478.0,0.08435535]
[1680679320320,0.05216193,28481.0,28479.0,0.026639]
[1680679320624,0.05267193,28481.0,28480.0,0.009]
[1680679321312,0.05267193,28481.0,28477.0,0.16487302]
[1680679321533,0.50541655,28481.0,28479.0,0.009]
[1680679321772,0.50241655,28481.0,28477.0,0.51958358]
[1680679321994,0.50541655,28481.0,28480.0,0.009]
[1680679322448,0.45325462,28481.0,28480.0,0.009]
[1680679322968,0.45025462,28481.0,28477.0,0.51958358]
[1680679323200,0.45325462,28481.0,28479.0,0.009]
[1680679323423,0.42822314,28480.0,28479.0,0.009]
[1680679323642,0.42873314,28480.0,28477.0,0.03861]
[1680679324085,0.42873314,28480.0,28477.0,0.028076]
[1680679324447,0.43173314,28480.0,28479.0,0.009]
[1680679324672,0.42873314,28480.0,28477.0,0.028076]
[1680679324877,0.43173314,28480.0,28477.0,0.04761]
[1680679325046,0.43173314,28480.0,28477.0,0.037076]
[1680679325826,0.38879772,28479.0,28477.0,0.028076]
[1680679326040,0.38930772,28479.0,28478.0,0.027551]
[1680679326892,0.38930772,28479.0,28477.0,0.028076]
[1680679327097,0.39130772,28479.0,28478.0,0.008]
[1680679328204,0.60912243,28479.0,28478.0,0.008]
[1680679328426,0.69807296,28479.0,28478.0,0.008]
[1680679329303,0.59147296,28479.0,28478.0,0.008]
[1680679329513,0.62153396,28479.0,28478.0,0.008]
[1680679329935,0.58947296,28479.0,28477.0,0.028076]
[1680679330168,0.58947296,28479.0,28478.0,0.004]
[1680679330387,0.13026053,28479.0,28478.0,0.004]
[1680679330622,0.16337053,28479.0,28478.0,0.004]
[1680679330832,0.48656852,28479.0,28478.0,0.004]
[1680679331671,0.45342652,28479.0,28477.0,0.028076]
[1680679331874,0.45342652,28479.0,28477.0,0.035076]
[1680679332077,0.45442652,28479.0,28477.0,0.028076]
[1680679332289,0.45342652,28479.0,28477.0,0.028076]
[1680679332949,0.49462852,28479.0,28478.0,0.001]
[1680679333165,0.45342652,28479.0,28477.0,0.028076]
[1680679333370,0.48563817,28479.0,28477.0,0.028076]
[1680679333582,0.48263817,28479.0,28477.0,0.028076]
[1680679334218,0.35288487,28478.0,28477.0,0.028076]
[1680679334435,0.35339487,28478.0,28477.0,0.028076]
[1680679335510,0.35639487,28478.0,28477.0,0.028076]
[1680679335740,0.38838187,28478.0,28477.0,0.028076]
[1680679336385,0.34588487,28478.0,28477.0,0.028076]
[1680679336630,0.37780587,28478.0,28477.0,0.028076]
[1680679337087,0.38963156,28478.0,28477.0,0.028076]
[1680679337304,0.9658069,28478.0,28475.0,0.0213]
[1680679337519,0.0734,28476.0,28475.0,0.0213]
[1680679338195,0.53563356,28476.0,28475.0,0.0213]
[1680679338424,1.40564473,28476.0,28475.0,0.0213]
[1680679338625,1.79605792,28476.0,28475.0,0.0283]
[1680679339046,0.4682,28475.0,28474.0,0.00774392]
[1680679339274,0.5,28470.0,28468.0,0.00012]
[1680679339475,0.5,28470.0,28464.0,0.0213]
[1680679339476,0.3682,28468.0,28464.0,0.0213]
[1680679339700,0.72291056,28466.0,28465.0,0.0113]
[1680679339914,0.4682,28465.0,28463.0,0.0213]
[1680679340129,0.90536137,28464.0,28463.0,0.0213]
[1680679340359,0.1,28463.0,28457.0,0.0213]
[1680679340571,1.12713137,28464.0,28457.0,0.0213]
[1680679340572,0.52937237,28462.0,28457.0,0.0213]
[1680679340783,0.1478,28458.0,28457.0,0.0213]
[1680679340998,0.180647,28458.0,28457.0,0.0213]
[1680679341208,0.1478,28458.0,28457.0,0.0213]
[1680679341867,0.001,28458.0,28457.0,0.031842]
[1680679342098,0.00051,28463.0,28457.0,0.38655256]
[1680679342323,0.45698992,28463.0,28459.0,0.026957]
[1680679342533,0.35471056,28467.0,28458.0,0.03603987]
[1680679342534,0.44994144,28462.0,28460.0,0.027341]
[1680679342746,0.00051,28464.0,28459.0,0.010541]
[1680679342982,0.3902275,28465.0,28460.0,0.026862]
[1680679343186,0.39983087,28464.0,28461.0,0.026034]
[1680679343414,0.00036,28464.0,28462.0,0.00808053]
[1680679343629,0.40140165,28470.0,28464.0,0.031618]
[1680679343847,0.36088198,28468.0,28465.0,0.38200856]
[1680679344079,0.34479581,28467.0,28466.0,0.027439]
[1680679344326,0.00051,28468.0,28466.0,0.027439]
[1680679344528,0.44767648,28468.0,28466.0,0.027439]
[1680679344743,0.003,28468.0,28466.0,0.027439]
[1680679345191,0.3341166,28470.0,28466.0,0.02322215]
[1680679345399,0.003,28468.0,28467.0,0.026192]
[1680679345617,0.003,28468.0,28467.0,0.03107252]
[1680679346187,0.04379767,28468.0,28467.0,0.03107252]
[1680679346587,0.04379767,28468.0,28467.0,0.05729352]
[1680679346759,0.04379767,28468.0,28467.0,0.007]
[1680679346760,0.58024747,28468.0,28467.0,0.007]
[1680679346975,0.78495747,28468.0,28467.0,0.007]
[1680679347201,0.60521823,28468.0,28467.0,0.00262023]
[1680679347652,0.60321823,28468.0,28459.0,0.00018]
[1680679347875,0.0822,28465.0,28459.0,0.00018]
[1680679348093,0.14189681,28464.0,28458.0,0.46698]
[1680679348322,0.49660737,28464.0,28458.0,0.46698]
[1680679349232,0.04344261,28463.0,28458.0,0.46698]
[1680679349514,0.54004998,28463.0,28458.0,0.46698]
[1680679349936,0.54004998,28463.0,28458.0,0.00218]
[1680679350141,0.45733756,28462.0,28458.0,0.002]
[1680679350350,0.45733756,28462.0,28457.0,0.05378879]
[1680679350556,0.59923437,28462.0,28458.0,0.002]
[1680679350762,0.45733756,28462.0,28458.0,0.002]
[1680679350971,0.45733756,28462.0,28458.0,0.03089194]
[1680679351184,0.45733756,28462.0,28458.0,0.02889194]
[1680679351398,0.45733756,28462.0,28459.0,0.02485005]
[1680679352229,0.45933756,28462.0,28459.0,0.02485005]
[1680679352441,0.41632467,28461.0,28459.0,0.02485005]
[1680679352648,0.41632467,28461.0,28459.0,0.02685005]
[1680679353091,0.001,28462.0,28459.0,0.002]
[1680679353309,0.001,28462.0,28459.0,0.033623]
[1680679353532,0.40805925,28464.0,28460.0,0.027285]
[1680679353749,0.001,28461.0,28460.0,0.127285]
[1680679353992,0.40805925,28464.0,28460.0,0.138006]
[1680679354193,0.00051,28466.0,28465.0,0.7682]
[1680679354445,0.39465767,28473.0,28465.0,1.56176356]
[1680679354657,0.39516767,28473.0,28468.0,0.0823]
[1680679354841,0.39516767,28473.0,28470.0,0.010537]
[1680679355093,0.00051,28473.0,28471.0,0.037265]
[1680679355299,0.3872,28480.0,28472.0,0.02648]
[1680679355300,0.00051,28479.0,28472.0,0.02648]
[1680679355479,0.39870162,28476.0,28472.0,0.34462331]
[1680679355716,0.003,28473.0,28471.0,0.010536]
[1680679355923,0.44732471,28474.0,28470.0,0.1794104]
[1680679356360,0.44732471,28474.0,28472.0,0.01]
[1680679356572,0.44783471,28474.0,28471.0,0.32432644]
[1680679356782,0.003,28473.0,28471.0,0.33432644]
[1680679357014,0.44783471,28474.0,28472.0,0.027876]
[1680679357225,0.44783471,28474.0,28471.0,0.32432644]
[1680679357672,0.44783471,28474.0,28471.0,0.31379044]
[1680679357880,0.44783471,28474.0,28471.0,0.32432644]
[1680679358092,0.45083471,28474.0,28471.0,0.32432644]
[1680679358332,0.44783471,28474.0,28471.0,0.32432644]
[1680679358514,0.45083471,28474.0,28471.0,0.33432644]
[1680679358750,0.45083471,28474.0,28472.0,0.02796]
[1680679359593,0.45083471,28474.0,28472.0,0.010536]
[1680679359767,0.44783471,28474.0,28473.0,0.026337]
[1680679360460,0.44783471,28474.0,28471.0,0.32432644]
[1680679360671,0.44783471,28474.0,28472.0,0.026598]
[1680679361125,0.44783471,28474.0,28471.0,0.32432644]
[1680679361126,0.44783471,28474.0,28473.0,0.025943]
[1680679361331,0.44783471,28474.0,28471.0,0.32432644]
[1680679361584,0.44783471,28474.0,28472.0,0.025236]
[1680679362432,0.05195123,28473.0,28472.0,0.025236]
[1680679363135,0.05195123,28473.0,28472.0,0.035236]
[1680679363580,0.05195123,28473.0,28472.0,0.01]
[1680679363802,0.40510904,28473.0,28472.0,0.01]
[1680679364249,0.40510904,28473.0,28468.0,0.54027009]
[1680679364476,0.40510904,28473.0,28472.0,0.01]
[1680679364477,0.54900585,28473.0,28472.0,0.01]
[1680679364706,0.40710904,28473.0,28472.0,0.01]
[1680679365570,0.05395123,28473.0,28472.0,0.01]
[1680679365781,0.08547723,28473.0,28472.0,0.01]
[1680679365999,0.48017701,28473.0,28472.0,0.01]
[1680679366222,0.08547723,28473.0,28472.0,0.01]
[1680679366450,0.52198779,28473.0,28472.0,0.01]
[1680679366674,0.62198779,28473.0,28472.0,0.01]
[1680679366893,0.69423757,28473.0,28472.0,0.01]
[1680679367116,0.62249779,28473.0,28465.0,0.42442]
[1680679367398,0.0818,28470.0,28465.0,0.4243]
[1680679367620,0.14189681,28469.0,28465.0,0.4243]
[1680679368280,0.08231,28470.0,28464.0,0.18702688]
[1680679368499,0.40826002,28468.0,28465.0,0.009]
[1680679368741,0.40826002,28468.0,28464.0,0.18702688]
[1680679368956,0.40826002,28468.0,28465.0,0.009]
[1680679370279,0.40826002,28468.0,28463.0,0.11890303]
[1680679370508,0.55015683,28468.0,28463.0,0.11884303]
[1680679370732,0.40926002,28468.0,28465.0,0.009]
[1680679370957,0.41679475,28467.0,28465.0,0.009]
[1680679371394,0.41679475,28467.0,28463.0,0.11896303]
[1680679371625,0.41679475,28467.0,28464.0,0.026156]
[1680679371832,0.41679475,28467.0,28463.0,0.11896303]
[1680679372077,0.41779475,28467.0,28465.0,0.009]
[1680679372756,0.41679475,28467.0,28465.0,0.10786637]
[1680679372970,0.41679475,28467.0,28466.0,0.028141]
[1680679373397,0.41879475,28467.0,28466.0,0.028141]
[1680679374059,0.41679475,28467.0,28466.0,0.028141]
[1680679374279,0.41779475,28467.0,28466.0,0.028141]
[1680679374495,0.41679475,28467.0,28466.0,0.028141]
[1680679374711,0.41679475,28467.0,28466.0,0.035141]
[1680679374928,0.41779475,28467.0,28466.0,0.007]
[1680679376532,0.41779475,28467.0,28466.0,0.017538]
[1680679376758,0.001,28467.0,28466.0,0.43983848]
[1680679377651,0.00024,28470.0,28466.0,0.78754904]
[1680679377879,0.002,28467.0,28466.0,0.41954648]
[1680679378102,0.002,28467.0,28466.0,0.44721548]
[1680679378291,0.002,28467.0,28466.0,0.44739548]
[1680679378522,0.002,28467.0,28466.0,0.54739548]
[1680679378714,0.002,28467.0,28466.0,0.44739548]
[1680679379174,0.17723938,28485.0,28469.0,0.3682]
[1680679379175,0.00051,28472.0,28469.0,0.3682]
[1680679379415,0.002,28470.0,28469.0,0.40319]
[1680679379635,0.33359729,28474.0,28469.0,0.46605917]
[1680679379864,0.33359729,28474.0,28471.0,0.0815]
[1680679380131,0.00051,28474.0,28472.0,0.037132]
[1680679380352,0.42202159,28475.0,28473.0,0.025798]
[1680679380572,0.00051,28475.0,28474.0,0.010535]
[1680679380807,0.42903395,28475.0,28474.0,0.010535]
[1680679381035,0.00051,28475.0,28474.0,0.010535]
[1680679381260,0.43243747,28475.0,28474.0,0.010535]
[1680679381484,0.45563432,28475.0,28474.0,0.010535]
[1680679381701,0.45563432,28475.0,28473.0,0.010535]
[1680679381921,0.45563432,28475.0,28474.0,0.025988]
[1680679382113,0.45563432,28475.0,28474.0,0.036523]
[1680679382262,0.45563432,28475.0,28474.0,0.010535]
[1680679383089,0.0418679,28475.0,28474.0,0.036649]
[1680679383394,0.0413579,28475.0,28474.0,0.064649]
[1680679383775,0.0418679,28475.0,28474.0,0.064649]
[1680679384630,0.0418679,28475.0,28474.0,0.41935956]
[1680679384851,0.0413579,28475.0,28474.0,0.41935956]
[1680679385071,0.0418679,28475.0,28474.0,0.70794811]
[1680679385291,0.00051,28475.0,28474.0,0.70794811]
[1680679385512,0.00051,28476.0,28474.0,0.70794811]
[1680679385739,0.32542189,28479.0,28475.0,0.38195056]
[1680679385963,0.32593189,28479.0,28476.0,0.037224]
[1680679386191,0.32593189,28479.0,28477.0,0.38194356]
[1680679386441,0.03695254,28478.0,28477.0,0.37577956]
[1680679386661,0.03695254,28478.0,28477.0,0.41273356]
[1680679386873,0.03695254,28478.0,28477.0,0.76543217]
[1680679387332,0.00051,28480.0,28477.0,0.76543217]
[1680679387554,0.00051,28481.0,28478.0,0.026605]
[1680679387775,0.00051,28481.0,28479.0,0.36524456]
[1680679387967,0.00051,28481.0,28480.0,0.026844]
[1680679388184,0.00051,28481.0,28480.0,0.39208756]
[1680679389291,0.00051,28481.0,28480.0,0.42008756]
[1680679389521,0.45303403,28481.0,28480.0,0.38271056]
[1680679390224,0.45303403,28481.0,28480.0,0.41968456]
[1680679391005,0.00051,28481.0,28480.0,0.41968456]
[1680679391233,0.42765845,28484.0,28480.0,0.60259421]
[1680679391446,0.42765845,28484.0,28481.0,0.38039756]
[1680679391666,0.42765845,28484.0,28482.0,0.026605]
[1680679391884,0.42765845,28484.0,28482.0,0.38131556]
[1680679392105,0.42765845,28484.0,28482.0,0.35471056]
[1680679392331,0.42765845,28484.0,28482.0,0.53246482]
[1680679392332,0.03853822,28483.0,28482.0,0.53246482]
[1680679392549,0.03904822,28483.0,28482.0,0.55946482]
[1680679392804,0.03904822,28483.0,28482.0,0.58346482]
[1680679393026,0.49106599,28483.0,28482.0,0.37871056]
[1680679393676,0.49106599,28483.0,28482.0,0.35471056]
[1680679393898,0.03904822,28483.0,28482.0,0.024]
[1680679394129,0.39730634,28483.0,28482.0,0.024]
[1680679394340,0.39781634,28483.0,28482.0,0.024]
[1680679397950,0.4120078,28483.0,28482.0,0.024]
[1680679398157,0.48931868,28483.0,28482.0,0.0234783]
[1680679398370,0.48889868,28483.0,28482.0,0.0234783]
[1680679399463,0.06942222,28483.0,28477.0,0.00018]
[1680679399735,0.46816762,28482.0,28477.0,0.35471056]
[1680679399930,0.46816762,28482.0,28477.0,0.45622481]
[1680679400605,0.32627081,28482.0,28477.0,0.45622481]
[1680679400815,0.32727081,28482.0,28477.0,0.48422481]
[1680679402193,0.40834181,28481.0,28477.0,0.48422481]
[1680679403180,0.40834181,28481.0,28477.0,0.45622481]
[1680679403321,0.03451546,28480.0,28477.0,0.48422481]
[1680679404172,0.03451546,28480.0,28477.0,0.45622481]
[1680679404565,0.03551546,28480.0,28477.0,0.48422481]
[1680679404766,0.37806357,28480.0,28477.0,0.48422481]
[1680679405255,0.42348196,28479.0,28477.0,0.48422481]
[1680679405892,0.42348196,28479.0,28477.0,0.38289056]
[1680679406152,0.42348196,28479.0,28477.0,0.02818]
[1680679406337,0.42348196,28479.0,28477.0,0.00018]
[1680679406554,0.42448196,28479.0,28477.0,0.02818]
[1680679406715,0.42448196,28479.0,28477.0,0.00018]
[1680679406716,0.42348196,28479.0,28477.0,0.00018]
[1680679406890,0.42448196,28479.0,28477.0,0.02818]
[1680679407306,0.03445573,28478.0,28477.0,0.02818]
[1680679408115,0.03445573,28478.0,28477.0,0.39899139]
[1680679408645,0.03445573,28478.0,28477.0,0.37099139]
[1680679408850,0.03545573,28478.0,28477.0,0.39899139]
[1680679409085,0.03445573,28478.0,28477.0,0.37099139]
[1680679409496,0.03445573,28478.0,28477.0,0.37253839]
[1680679409497,0.03545573,28478.0,28477.0,0.37253839]
[1680679409712,0.03545573,28478.0,28477.0,0.028]
[1680679410383,0.03545573,28478.0,28477.0,0.038534]
[1680679410519,0.03545573,28478.0,28477.0,0.066765]
[1680679411250,0.001,28478.0,28477.0,0.066765]
[1680679412220,0.32509681,28478.0,28477.0,0.028]
[1680679412430,0.115569,28478.0,28477.0,0.028]
[1680679413329,0.114569,28478.0,28471.0,0.04010508]
[1680679413548,0.0822,28475.0,28471.0,0.04010508]
[1680679413773,0.22409681,28475.0,28471.0,0.04028508]
[1680679414240,0.0822,28475.0,28471.0,0.04028508]
[1680679414458,0.41620389,28478.0,28471.0,0.04028508]
[1680679414692,0.031494,28477.0,28471.0,0.04028508]
[1680679414914,0.5491007,28478.0,28471.0,0.05082108]
[1680679415131,0.41715673,28477.0,28472.0,0.25625082]
[1680679415318,0.45112474,28477.0,28472.0,0.25643082]
[1680679415560,0.001,28475.0,28472.0,0.25643082]
[1680679415757,0.45112474,28477.0,28472.0,0.25643082]
[1680679415975,0.45212474,28477.0,28472.0,0.27343082]
[1680679416200,0.45112474,28477.0,28472.0,0.25643082]
[1680679416432,0.41715673,28477.0,28472.0,0.25643082]
[1680679416653,0.001,28475.0,28472.0,0.27343082]
[1680679416871,0.41715673,28477.0,28472.0,0.25643082]
[1680679417963,0.41715673,28477.0,28472.0,0.27343082]
[1680679418222,0.41815673,28477.0,28472.0,0.27343082]
[1680679418873,0.41815673,28477.0,28472.0,0.28396682]
[1680679419107,0.41866673,28477.0,28472.0,0.28378682]
[1680679419321,0.41815673,28477.0,28473.0,0.35471056]
[1680679419595,0.41815673,28477.0,28473.0,0.35489056]
[1680679420437,0.37585274,28476.0,28473.0,0.35489056]
[1680679421088,0.37585274,28476.0,28473.0,0.36489056]
[1680679421396,0.37585274,28476.0,28473.0,0.00018]
[1680679421615,0.37685274,28476.0,28473.0,0.01018]
[1680679422945,0.4036933,28475.0,28473.0,0.01018]
[1680679423401,0.43760157,28475.0,28473.0,0.01018]
[1680679423871,0.43760157,28475.0,28473.0,0.00018]
[1680679424096,0.43760157,28475.0,28472.0,0.00018]
[1680679424315,0.4046933,28475.0,28473.0,0.01]
[1680679424525,0.4046933,28475.0,28473.0,0.01018]
[1680679425010,0.4036933,28475.0,28473.0,0.00018]
[1680679425240,0.4046933,28475.0,28473.0,0.00018]
[1680679425480,0.4036933,28475.0,28473.0,0.00018]
[1680679425699,0.4036933,28475.0,28473.0,0.01018]
[1680679425700,0.4046933,28475.0,28473.0,0.01018]
[1680679426146,0.4046933,28475.0,28474.0,0.0056]
[1680679426372,0.4046933,28475.0,28474.0,0.00578]
[1680679426836,0.4036933,28475.0,28474.0,0.00578]
[1680679427056,0.4036933,28475.0,28474.0,0.00978]
[1680679427543,0.4036933,28475.0,28474.0,0.0096]
[1680679430205,0.45727504,28477.0,28474.0,0.16672778]
[1680679430847,0.45727504,28477.0,28474.0,0.16272778]
[1680679431125,0.45727504,28477.0,28474.0,0.16672778]
[1680679431283,0.03393814,28476.0,28474.0,0.17726278]
[1680679431833,0.03393814,28476.0,28475.0,0.55714529]
[1680679432040,0.03393814,28476.0,28475.0,0.59521729]
[1680679432253,0.3365796,28479.0,28475.0,0.59521729]
[1680679432464,0.3365796,28479.0,28475.0,0.56786029]
[1680679432891,0.38943906,28478.0,28475.0,0.56786029]
[1680679433344,0.38943906,28478.0,28475.0,0.59586029]
[1680679433567,0.38943906,28478.0,28476.0,0.17036777]
[1680679433779,0.38943906,28478.0,28476.0,0.17054777]
[1680679434299,0.03058751,28477.0,28476.0,0.17054777]
[1680679436042,0.03058751,28477.0,28476.0,0.19854777]
[1680679436277,0.03058751,28477.0,28476.0,0.17594777]
[1680679436495,0.03058751,28477.0,28476.0,0.20394777]
[1680679436954,0.03058751,28477.0,28476.0,0.17594777]
[1680679437146,0.03058751,28477.0,28476.0,0.20216677]
[1680679437399,0.03058751,28477.0,28476.0,0.17594777]
[1680679437623,0.03058751,28477.0,28476.0,0.20394777]
[1680679438453,0.03047244,28477.0,28476.0,0.17576777]
[1680679438676,0.03047244,28477.0,28476.0,0.20376777]
[1680679438900,0.03047244,28477.0,28476.0,0.17576777]
[1680679439120,0.03047244,28477.0,28476.0,0.20376777]
[1680679439549,0.03047244,28477.0,28476.0,0.17576777]
[1680679439767,0.03047244,28477.0,28476.0,0.20376777]
[1680679440011,0.03047244,28477.0,28476.0,0.17576777]
[1680679440228,0.03047244,28477.0,28476.0,0.20376777]
[1680679441753,0.03047244,28477.0,28476.0,0.17576777]
[1680679441974,0.03047244,28477.0,28476.0,0.20376777]
[1680679442205,0.03047244,28477.0,28476.0,0.17576777]
[1680679442394,0.03047244,28477.0,28476.0,0.20376777]
[1680679442630,0.00547244,28477.0,28476.0,0.17576777]
[1680679442879,0.00547244,28477.0,28476.0,0.20376777]
[1680679443309,0.028076,28477.0,28476.0,0.20376777]
[1680679443523,0.028076,28477.0,28476.0,0.17576777]
[1680679443731,0.028076,28477.0,28476.0,0.20376777]
[1680679443982,0.028076,28477.0,28476.0,0.59639733]
[1680679444202,0.028076,28477.0,28476.0,0.58635733]
[1680679444638,0.028076,28477.0,28476.0,0.53047833]
[1680679444875,0.028076,28477.0,28476.0,0.55847833]
[1680679445114,0.028076,28477.0,28476.0,0.53047833]
[1680679445310,0.3753978,28479.0,28476.0,0.55847833]
[1680679445565,0.3753978,28479.0,28477.0,0.35471056]
[1680679445794,0.3498878,28479.0,28477.0,0.35489056]
[1680679446224,0.02810587,28478.0,28477.0,0.35489056]
[1680679446472,0.02810587,28478.0,28477.0,0.53472552]
[1680679447548,0.02810587,28478.0,28477.0,0.38289056]